lending/lending_fUSD_20240411
["ID","MTS","AMOUNT","RATE_DAILY","PERIOD"]
[322203156,1712870007164,-585.74,0.0003178,2]
[322203157,1712870007174,-1454.96,0.0003178,2]
[322203158,1712870007183,-600.91,0.0003178,2]
[322203159,1712870007193,-627.17,0.0003178,2]
[322203160,1712870007203,-1870.66,0.0003178,2]
[322203161,1712870007213,-921.94,0.0003178,2]
[322203162,1712870007223,-1288.35,0.0003178,2]
[322203163,1712870007232,-670.72,0.0003178,2]
[322203164,1712870007241,-1052.23,0.0003178,2]
[322203165,1712870007250,-1720.31,0.0003178,2]
[322203166,1712870007260,-500.0,0.0003178,2]
[322203167,1712870007269,-2622.22,0.0003178,2]
[322203168,1712870007278,-1850.14,0.0003178,2]
[322203169,1712870007287,-500.0,0.0003178,2]
[322203170,1712870007297,-500.0,0.0003178,2]
[322203171,1712870007306,-277.38738636,0.0003178,2]
[322203172,1712870007315,-869.29,0.0003178,2]
[322203173,1712870007325,-722.11,0.0003178,2]
[322203174,1712870007334,-933.06,0.0003178,2]
[322203175,1712870007343,-500.0,0.0003178,2]
[322203176,1712870007352,-1172.68,0.0003178,2]
[322203177,1712870007362,-500.0,0.0003178,2]
[322203178,1712870007371,-1203.46,0.0003178,2]
[322203179,1712870007381,-993.8,0.0003178,2]
[322203180,1712870007392,-500.0,0.0003178,2]
[322203181,1712870007404,-500.0,0.0003178,2]
[322203182,1712870007414,-150.0,0.0003178,2]
[322203183,1712870007424,-1318.86,0.0003178,2]
[322203184,1712870007434,-879.12,0.0003178,2]
[322203185,1712870007445,-1664.67,0.0003178,2]
[322203186,1712870007454,-500.0,0.0003178,2]
[322203187,1712870007464,-553.15,0.0003178,2]
[322203188,1712870007475,-916.81,0.0003178,2]
[322203189,1712870007488,-923.4,0.0003178,2]
[322203190,1712870007498,-1597.09,0.0003178,2]
[322203191,1712870007507,-500.0,0.0003178,2]
[322203192,1712870007516,-500.0,0.0003178,2]
[322203193,1712870007525,-500.0,0.0003178,2]
[322203194,1712870007534,-1225.4,0.0003178,2]
[322203195,1712870007544,-1736.6,0.0003178,2]
[322203196,1712870007552,-1687.78,0.0003178,2]
[322203197,1712870007562,-533.65,0.0003178,2]
[322203198,1712870007571,-892.21,0.0003178,2]
[322203199,1712870007581,-698.09,0.0003178,2]
[322203200,1712870007590,-500.0,0.0003178,2]
[322203201,1712870007599,-1618.97,0.0003178,2]
[322203202,1712870007609,-500.0,0.0003178,2]
[322203203,1712870007619,-998.14,0.0003178,2]
[322203204,1712870007628,-500.0,0.0003178,2]
[322203205,1712870007638,-1890.51,0.0003178,2]
[322203206,1712870007647,-827.22,0.0003178,2]
[322203207,1712870007656,-500.0,0.0003178,2]
[322203208,1712870007666,-500.0,0.0003178,2]
[322203209,1712870007676,-1646.03,0.0003178,2]
[322203210,1712870007686,-911.48,0.0003178,2]
[322203211,1712870007793,-767.01,0.0003178,2]
[322203212,1712870007802,-1116.76,0.0003178,2]
[322203213,1712870007812,-570.82,0.0003178,2]
[322203214,1712870007821,-1022.77,0.0003178,2]
[322203215,1712870007830,-831.5,0.0003178,2]
[322203216,1712870007839,-680.97,0.0003178,2]
[322203217,1712870007848,-500.0,0.0003178,2]
[322203218,1712870007857,-752.98,0.0003178,2]
[322203219,1712870007866,-1499.79,0.0003178,2]
[322203220,1712870007875,-814.1,0.0003178,2]
[322203221,1712870007884,-7400.19,0.0003178,2]
[322203222,1712870007893,-1023.14,0.0003178,2]
[322203223,1712870007901,-700.72,0.0003178,2]
[322203224,1712870007910,-500.0,0.0003178,2]
[322203225,1712870007919,-950.09,0.0003178,2]
[322203226,1712870007928,-1871.77,0.0003178,2]
[322203227,1712870007936,-3724.71,0.0003178,2]
[322203228,1712870007947,-5395.14,0.0003178,2]
[322203229,1712870007956,-1464.27,0.0003178,2]
[322203230,1712870007965,-978.66,0.0003178,2]
[322203231,1712870007974,-500.0,0.0003178,2]
[322203232,1712870007983,-693.58,0.0003178,2]
[322203233,1712870007992,-984.51,0.0003178,2]
[322203234,1712870008001,-4620.04,0.0003178,2]
[322203235,1712870008010,-1300.92,0.0003178,2]
[322203236,1712870008019,-934.17,0.0003178,2]
[322203237,1712870008028,-1543.03,0.0003178,2]
[322203238,1712870008037,-5425.41,0.0003178,2]
[322203239,1712870008046,-500.0,0.0003178,2]
[322203240,1712870008054,-1214.31,0.0003178,2]
[322203241,1712870008063,-788.68,0.0003178,2]
[322203242,1712870008073,-613.33,0.0003178,2]
[322203243,1712870008083,-500.0,0.0003178,2]
[322203244,1712870008092,-827.37,0.0003178,2]
[322203245,1712870008101,-1593.55,0.0003178,2]
[322203246,1712870008110,-1948.7,0.0003178,2]
[322203247,1712870008119,-500.0,0.0003178,2]
[322203248,1712870008128,-9749.83,0.0003178,2]
[322203249,1712870008137,-2131.76,0.0003178,2]
[322203250,1712870008146,-1560.14,0.0003178,2]
[322203251,1712870008155,-1518.32,0.0003178,2]
[322203252,1712870008164,-1413.3,0.0003178,2]
[322203253,1712870008173,-661.44,0.0003178,2]
[322203254,1712870008182,-5230.96,0.0003178,2]
[322203255,1712870008191,-2479.01,0.0003178,2]
[322203256,1712870008202,-1464.2,0.0003178,2]
[322203257,1712870008211,-3647.95,0.0003178,2]
[322203258,1712870008220,-1527.36,0.0003178,2]
[322203259,1712870008229,-1358.23,0.0003178,2]
[322203260,1712870008238,-1020.16,0.0003178,2]
[322203261,1712870008246,-668.8,0.0003178,2]
[322203262,1712870008256,-11162.19,0.0003178,2]
[322203263,1712870008264,-3874.31,0.0003178,2]
[322203264,1712870008273,-41084.78,0.0003178,2]
[322203265,1712870008282,-500.0,0.0003178,2]
[322203266,1712870008291,-740.63,0.0003178,2]
[322203267,1712870008301,-500.0,0.0003178,2]
[322203268,1712870008311,-500.0,0.0003178,2]
[322203269,1712870008320,-548.57,0.0003178,2]
[322203270,1712870008329,-7785.82,0.0003178,2]
[322203271,1712870008339,-1513.09,0.0003178,2]
[322203272,1712870008348,-567.17,0.0003178,2]
[322203273,1712870008357,-3631.93,0.0003178,2]
[322203274,1712870008367,-8421.98,0.0003178,2]
[322203275,1712870008376,-3207.81,0.0003178,2]
[322203276,1712870008385,-2311.09,0.0003178,2]
[322203277,1712870008394,-921.98,0.0003178,2]
[322203278,1712870008406,-12662.48,0.0003178,2]
[322203279,1712870008415,-1525.4,0.0003178,2]
[322203280,1712870008424,-1851.69,0.0003178,2]
[322203281,1712870008433,-3131.37,0.0003178,2]
[322203282,1712870008443,-875.02,0.0003178,2]
[322203283,1712870008451,-7402.21,0.0003178,2]
[322203284,1712870008461,-2709.87,0.0003178,2]
[322203285,1712870008470,-500.0,0.0003178,2]
[322203286,1712870008479,-1503.27,0.0003178,2]
[322203287,1712870008490,-2499.54,0.0003178,2]
[322203288,1712870008500,-650.21,0.0003178,2]
[322203289,1712870008510,-5388.34,0.0003178,2]
[322203290,1712870008519,-1676.04,0.0003178,2]
[322203291,1712870008529,-643.01,0.0003178,2]
[322203292,1712870008538,-2309.38,0.0003178,2]
[322203293,1712870008547,-5653.29,0.0003178,2]
[322203294,1712870008557,-928.47,0.0003178,2]
[322203295,1712870008566,-1703.86,0.0003178,2]
[322203296,1712870008575,-790.7,0.0003178,2]
[322203297,1712870008585,-2381.75,0.0003178,2]
[322203298,1712870008594,-852.74,0.0003178,2]
[322203299,1712870008603,-2994.14,0.0003178,2]
[322203300,1712870008612,-500.0,0.0003178,2]
[322203301,1712870008621,-4680.33,0.0003178,2]
[322203302,1712870008630,-21256.33,0.0003178,2]
[322203303,1712870008639,-2204.86,0.0003178,2]
[322203304,1712870008647,-989.07,0.0003178,2]
[322203305,1712870008656,-5675.36,0.0003178,2]
[322203306,1712870008665,-660.51,0.0003178,2]
[322203307,1712870008674,-2867.21,0.0003178,2]
[322203308,1712870008683,-1346.35,0.0003178,2]
[322203309,1712870008692,-2960.74,0.0003178,2]
[322203310,1712870008703,-887.19,0.0003178,2]
[322203311,1712870008712,-1179.12,0.0003178,2]
[322203312,1712870008721,-1283.97,0.0003178,2]
[322203313,1712870008730,-872.68,0.0003178,2]
[322203314,1712870008739,-1502.33,0.0003178,2]
[322203315,1712870008748,-10128.26,0.0003178,2]
[322203316,1712870008757,-683.97,0.0003178,2]
[322203317,1712870008766,-623.58,0.0003178,2]
[322203318,1712870008775,-500.0,0.0003178,2]
[322203319,1712870008784,-1185.71,0.0003178,2]
[322203320,1712870008793,-1427.1,0.0003178,2]
[322203321,1712870008802,-2367.24,0.0003178,2]
[322203322,1712870008811,-500.0,0.0003178,2]
[322203323,1712870008820,-2143.26,0.0003178,2]
[322203324,1712870008829,-1106.87,0.0003178,2]
[322203325,1712870008838,-2686.26,0.0003178,2]
[322203326,1712870008849,-2721.81,0.0003178,2]
[322203327,1712870008858,-3567.1,0.0003178,2]
[322203328,1712870008869,-3548.97,0.0003178,2]
[322203329,1712870008878,-19344.8,0.0003178,2]
[322203330,1712870008889,-1844.22,0.0003178,2]
[322203331,1712870008898,-537.03,0.0003178,2]
[322203332,1712870008908,-1228.02,0.0003178,2]
[322203333,1712870008917,-3053.42,0.0003178,2]
[322203334,1712870008927,-4239.16,0.0003178,2]
[322203335,1712870008936,-1745.12,0.0003178,2]
[322203336,1712870008945,-3035.53,0.0003178,2]
[322203337,1712870008954,-4808.47,0.0003178,2]
[322203338,1712870008963,-2664.5,0.0003178,2]
[322203339,1712870008973,-1373.93,0.0003178,2]
[322203340,1712870008982,-505.74,0.0003178,2]
[322203341,1712870008991,-738.07,0.0003178,2]
[322203342,1712870009001,-1109.77,0.0003178,2]
[322203343,1712870009010,-3190.86,0.0003178,2]
[322203344,1712870009020,-2221.72,0.0003178,2]
[322203345,1712870009029,-2263.75,0.0003178,2]
[322203346,1712870009037,-17424.44,0.0003178,2]
[322203347,1712870009046,-1128.64,0.0003178,2]
[322203348,1712870009055,-612.74,0.0003178,2]
[322203349,1712870009064,-1502.24,0.0003178,2]
[322203350,1712870009073,-17072.27,0.0003178,2]
[322203351,1712870009082,-3052.22,0.0003178,2]
[322203352,1712870009091,-500.0,0.0003178,2]
[322203353,1712870009101,-3640.47,0.0003178,2]
[322203354,1712870009110,-1957.97,0.0003178,2]
[322203355,1712870009119,-955.9,0.0003178,2]
[322203356,1712870009129,-500.0,0.0003178,2]
[322203357,1712870009138,-3659.25,0.0003178,2]
[322203358,1712870009147,-5766.3,0.0003178,2]
[322203359,1712870009156,-3575.16,0.0003178,2]
[322203360,1712870009165,-711.78,0.0003178,2]
[322203361,1712870009174,-397.66967027,0.0003178,2]
[322203362,1712870009183,-7639.5,0.0003178,2]
[322203363,1712870009192,-1392.31,0.0003178,2]
[322203364,1712870009203,-7389.58,0.0003178,2]
[322203365,1712870009214,-3014.69,0.0003178,2]
[322203366,1712870009223,-2191.02,0.0003178,2]
[322203367,1712870009233,-5336.03,0.0003178,2]
[322203368,1712870009242,-4291.51,0.0003178,2]
[322203369,1712870009251,-1051.14,0.0003178,2]
[322203370,1712870009262,-604.03,0.0003178,2]
[322203371,1712870009271,-52708.74,0.0003178,2]
[322203372,1712870009281,-3260.75,0.0003178,2]
[322203373,1712870009291,-5115.15,0.0003178,2]
[322203374,1712870009300,-882.87,0.0003178,2]
[322203375,1712870009310,-5854.93,0.0003178,2]
[322203376,1712870009319,-8061.26,0.0003178,2]
[322203377,1712870009328,-916.85,0.0003178,2]
[322203378,1712870009337,-745.2,0.0003178,2]
[322203379,1712870009346,-7112.46,0.0003178,2]
[322203380,1712870009356,-6099.37,0.0003178,2]
[322203381,1712870009366,-1872.85,0.0003178,2]
[322203382,1712870009377,-1834.17,0.0003178,2]
[322203383,1712870009386,-5187.78,0.0003178,2]
[322203384,1712870009395,-1268.14,0.0003178,2]
[322203385,1712870009410,-1960.92,0.0003178,2]
[322203386,1712870009419,-3993.87,0.0003178,2]
[322203387,1712870009428,-1940.4,0.0003178,2]
[322203388,1712870009437,-1144.44,0.0003178,2]
[322203389,1712870009447,-30065.72,0.0003178,2]
[322203390,1712870009456,-1318.07,0.0003178,2]
[322203391,1712870009466,-3922.38,0.0003178,2]
[322203392,1712870009477,-500.0,0.0003178,2]
[322203393,1712870009487,-1507.79,0.0003178,2]
[322203394,1712870009498,-7272.96,0.0003178,2]
[322203395,1712870009507,-2185.46,0.0003178,2]
[322203396,1712870009516,-1894.92,0.0003178,2]
[322203397,1712870009526,-500.0,0.0003178,2]
[322203398,1712870009537,-739.67,0.0003178,2]
[322203399,1712870009546,-2576.43,0.0003178,2]
[322203400,1712870009556,-500.0,0.0003178,2]
[322203401,1712870009566,-752.22,0.0003178,2]
[322203402,1712870009575,-2674.56,0.0003178,2]
[322203403,1712870009585,-918.8,0.0003178,2]
[322203404,1712870009594,-548.63,0.0003178,2]
[322203405,1712870009604,-636.15,0.0003178,2]
[322203406,1712870009613,-729.18,0.0003178,2]
[322203407,1712870009623,-3486.04,0.0003178,2]
[322203408,1712870009632,-763.21,0.0003178,2]
[322203409,1712870009641,-8034.42,0.0003178,2]
[322203410,1712870009651,-3850.53,0.0003178,2]
[322203411,1712870009660,-1687.56,0.0003178,2]
[322203412,1712870009670,-500.0,0.0003178,2]
[322203413,1712870009679,-4101.12,0.0003178,2]
[322203414,1712870009688,-565.51,0.0003178,2]
[322203415,1712870009697,-2084.11,0.0003178,2]
[322203416,1712870009706,-544.26,0.0003178,2]
[322203417,1712870009716,-544.38,0.0003178,2]
[322203418,1712870009725,-1782.79,0.0003178,2]
[322203419,1712870009736,-3404.95,0.0003178,2]
[322203420,1712870009745,-510.02,0.0003178,2]
[322203421,1712870009756,-500.0,0.0003178,2]
[322203422,1712870009765,-332.49285313,0.0003178,2]
[322203423,1712870009774,-2028.74,0.0003178,2]
[322203424,1712870009786,-500.0,0.0003178,2]
[322203425,1712870009796,-3939.9,0.0003178,2]
[322203426,1712870009806,-733.75,0.0003178,2]
[322203427,1712870009815,-5901.28,0.0003178,2]
[322203428,1712870009824,-2166.88,0.0003178,2]
[322203429,1712870009835,-500.0,0.0003178,2]
[322203430,1712870009845,-722.6,0.0003178,2]
[322203431,1712870009854,-538.95,0.0003178,2]
[322203432,1712870009863,-3339.86,0.0003178,2]
[322203433,1712870009874,-1774.88,0.0003178,2]
[322203434,1712870009884,-150.0,0.00031788,2]
[322203435,1712870009894,-150.0,0.00031843,2]
[322203436,1712870009904,-66399.200651,0.00031872,2]
[322203437,1712870009914,-9618.07244775,0.00031872,2]
[322203438,1712870009923,-6643.6537186,0.00031873,2]
[322203439,1712870009932,-75423.6819341,0.00031873,2]
[322203440,1712870009942,-147681.93427656,0.00031874,2]
[322203441,1712870009954,-9618.07244775,0.00031874,2]
[322203442,1712870009963,-25309.61361478,0.00031876,2]
[322203443,1712870009974,-66399.200651,0.00031876,2]
[322203444,1712870009984,-66399.200651,0.00031876,2]
[322203445,1712870009994,-2530.29825365,0.00031877,2]
[322203446,1712870010003,-31196.20596539,0.00031879,2]
[322203447,1712870010012,-3580.41450083,0.00031879,2]
[322203448,1712870010021,-315.95335298,0.00031879,2]
[322203449,1712870010029,-5932.1762128,0.00031879,2]
[322203450,1712870010039,-147681.93427656,0.00031879,2]
[322203451,1712870010049,-53148.29567241,0.00031881,2]
[322203452,1712870010059,-150.0,0.00031881,2]
[322203453,1712870010068,-53148.29567241,0.00031882,2]
[322203454,1712870010077,-2681.03369067,0.00031883,2]
[322203455,1712870010087,-315.95335298,0.00031884,2]
[322203456,1712870010096,-3580.41450083,0.00031884,2]
[322203457,1712870010106,-25309.61361478,0.00031885,2]
[322203458,1712870010115,-315.95335298,0.00031885,2]
[322203459,1712870010123,-387.18522007,0.00031885,2]
[322203460,1712870010133,-387.18522007,0.00031885,2]
[322203461,1712870010143,-53148.29567241,0.00031886,2]
[322203462,1712870010151,-150.0,0.00031889,2]
[322203463,1712870010160,-9618.07244775,0.00031889,2]
[322203464,1712870010170,-619.71921938,0.0003189,30]
[322203465,1712870010180,-210.63556866,0.00031892,2]
[322203466,1712870010191,-147681.93427656,0.00031893,2]
[322203467,1712870010201,-25309.61361478,0.00031893,2]
[322203468,1712870010210,-387.18522007,0.00031894,2]
[322203469,1712870010219,-53148.29567241,0.00031895,2]
[322203470,1712870010228,-3580.41450083,0.00031895,2]
[322203471,1712870010238,-2530.29825365,0.00031896,2]
[322203472,1712870010249,-2681.03369067,0.00031896,2]
[322203473,1712870010257,-161.8826711,0.00031899,2]
[322203474,1712870010268,-53148.29567241,0.000319,2]
[322203475,1712870010278,-210.63556866,0.000319,2]
[322203476,1712870010288,-387.18522007,0.000319,2]
[322203477,1712870010298,-9618.07244775,0.000319,2]
[322203478,1712870010307,-387.18522007,0.00031901,2]
[322203479,1712870010316,-210.63556866,0.00031902,2]
[322203480,1712870010325,-53148.29567241,0.00031902,2]
[322203481,1712870010334,-161.8826711,0.00031903,2]
[322203482,1712870010343,-161.8826711,0.00031906,2]
[322203483,1712870010353,-387.18522007,0.00031907,2]
[322203484,1712870010363,-387.18522007,0.00031907,2]
[322203485,1712870010373,-147681.93427656,0.00031908,2]
[322203486,1712870010383,-25309.61361478,0.00031909,2]
[322203487,1712870010393,-66399.200651,0.0003191,2]
[322203488,1712870010406,-210.63556866,0.0003191,2]
[322203489,1712870010417,-210.63556866,0.0003191,2]
[322203490,1712870010428,-11777.114556,0.0003191,2]
[322203491,1712870010438,-2530.29825365,0.0003191,2]
[322203492,1712870010448,-315.95335298,0.00031912,2]
[322203493,1712870010458,-31196.20596539,0.00031912,2]
[322203494,1712870010467,-210.63556866,0.00031914,2]
[322203495,1712870010478,-31196.20596539,0.00031914,2]
[322203496,1712870010488,-315.95335298,0.00031918,2]
[322203497,1712870010498,-2681.03369067,0.00031918,2]
[322203498,1712870010507,-3580.41450083,0.00031919,2]
[322203499,1712870010516,-66399.200651,0.0003192,2]
[322203500,1712870010526,-147681.93427656,0.00031922,2]
[322203501,1712870010535,-31196.20596539,0.00031923,2]
[322203502,1712870010545,-315.95335298,0.00031923,2]
[322203503,1712870010555,-31196.20596539,0.00031924,2]
[322203504,1712870010564,-210.63556866,0.00031924,2]
[322203505,1712870010573,-9618.07244775,0.00031926,2]
[322203506,1712870010582,-3580.41450083,0.00031927,2]
[322203507,1712870010591,-150.0,0.00031927,2]
[322203508,1712870010602,-387.18522007,0.00031928,2]
[322203509,1712870010611,-147681.93427656,0.00031928,2]
[322203510,1712870010621,-9618.07244775,0.00031929,2]
[322203511,1712870010631,-25309.61361478,0.00031929,2]
[322203512,1712870010640,-2681.03369067,0.0003193,2]
[322203513,1712870010651,-315.95335298,0.0003193,2]
[322203514,1712870010660,-53148.29567241,0.00031931,2]
[322203515,1712870010671,-147681.93427656,0.00031932,2]
[322203516,1712870010681,-161.8826711,0.00031933,2]
[322203517,1712870010690,-3580.41450083,0.00031935,2]
[322203518,1712870010700,-2530.29825365,0.00031935,2]
[322203519,1712870010709,-315.95335298,0.00031937,2]
[322203520,1712870010718,-31196.20596539,0.00031943,2]
[322203521,1712870010727,-161.8826711,0.00031943,2]
[322203522,1712870010736,-2530.29825365,0.00031944,2]
[322203523,1712870010745,-3580.41450083,0.00031945,2]
[322203524,1712870010754,-2530.29825365,0.00031945,2]
[322203525,1712870010763,-2530.29825365,0.00031945,2]
[322203526,1712870010772,-31196.20596539,0.00031947,2]
[322203527,1712870010782,-66399.200651,0.00031947,2]
[322203528,1712870010791,-147681.93427656,0.00031948,2]
[322203529,1712870010800,-31196.20596539,0.00031949,2]
[322203530,1712870010810,-25309.61361478,0.00031949,2]
[322203531,1712870010820,-210.63556866,0.00031951,2]
[322203532,1712870010829,-9618.07244775,0.00031951,2]
[322203533,1712870010838,-3580.41450083,0.00031954,2]
[322203534,1712870010848,-2681.03369067,0.00031956,2]
[322203535,1712870010857,-2681.03369067,0.00031958,2]
[322203536,1712870010867,-2681.03369067,0.00031961,2]
[322203537,1712870010878,-31196.20596539,0.00031961,2]
[322203538,1712870010888,-66399.200651,0.00031963,2]
[322203539,1712870010897,-161.8826711,0.00031967,2]
[322203540,1712870010907,-2530.29825365,0.00031968,2]
[322203541,1712870010917,-161.8826711,0.0003197,2]
[322203542,1712870010925,-147681.93427656,0.0003197,2]
[322203543,1712870010935,-53148.29567241,0.00031971,2]
[322203544,1712870010944,-9618.07244775,0.00031972,2]
[322203545,1712870010954,-25309.61361478,0.00031977,2]
[322203546,1712870010964,-5170.0414459,0.00031978,2]
[322203547,1712870010973,-6828.6582358,0.00031978,2]
[322203548,1712870010982,-77523.990357,0.00031978,2]
[322203549,1712870010991,-161.8826711,0.00031981,2]
[322203550,1712870011000,-7445.17,0.00031983,5]
[322203551,1712870011010,-53148.29567241,0.00031983,2]
[322203552,1712870011019,-2530.29825365,0.00031984,2]
[322203553,1712870011028,-66399.200651,0.00031984,2]
[322203554,1712870011037,-66399.200651,0.00031985,2]
[322203555,1712870011046,-25309.61361478,0.00031986,2]
[322203556,1712870011055,-315.95335298,0.00031987,2]
[322203557,1712870011064,-2681.03369067,0.00031989,2]
[322203558,1712870011073,-9618.07244775,0.00031989,2]
[322203559,1712870011083,-210.63556866,0.00031992,2]
[322203560,1712870011092,-387.18522007,0.00031992,2]
[322203561,1712870011101,-161.8826711,0.00031997,2]
[322203562,1712870011110,-3580.41450083,0.00031997,2]
[322203563,1712870011120,-2681.03369067,0.00031997,2]
[322203564,1712870011129,-25309.61361478,0.00031997,2]
[322203565,1712870011138,-100000.0,0.00032,12]
[322203566,1712870011147,-332.1406229,0.00032,4]
[322203567,1712870011156,-150.0,0.00032,2]
[322203568,1712870011166,-3257897.81442311,0.00032,2]
[322203569,1712870011174,-81146.02709916,0.00032,2]
[322203570,1712870011183,-176221.97781524,0.00032,5]
[322203571,1712870011192,-1273100.24835022,0.00032,5]
[322203572,1712870011202,-167133.90817539,0.00032,5]
[322203573,1712870011211,-1282708.50257539,0.00032,5]
[322203574,1712870011221,-94422.86219066,0.00032,5]
[322203575,1712870011230,-9768.333898,0.00032,8]
[322203576,1712870011239,-8000.0,0.00032,4]
[322203577,1712870011248,-120096.4171755,0.00032,5]
[322203578,1712870011257,-206.60414812,0.00032,4]
[322203579,1712870011266,-619.71921938,0.00032,30]
[322203580,1712870011276,-507.89,0.00032054,2]
[322203581,1712870011285,-590.86,0.00032054,2]
[322203582,1712870011294,-805.44,0.00032054,2]
[322203583,1712870011303,-629.54,0.00032054,2]
[322203584,1712870011314,-500.0,0.00032054,2]
[322203585,1712870011322,-500.0,0.00032054,2]
[322203586,1712870011332,-765.12,0.00032054,2]
[322203587,1712870011341,-500.0,0.00032054,2]
[322203588,1712870011350,-673.55,0.00032054,2]
[322203589,1712870011360,-635.3769503,0.00032054,2]
[322203590,1712870011369,-500.0,0.00032054,2]
[322203591,1712870011378,-500.0,0.00032054,2]
[322203592,1712870011387,-500.0,0.00032054,2]
[322203593,1712870011396,-1055.22,0.00032054,2]
[322203594,1712870011410,-838.26,0.00032054,2]
[322203595,1712870011419,-513.12,0.00032054,2]
[322203596,1712870011428,-561.16,0.00032054,2]
[322203597,1712870011437,-520.88,0.00032054,2]
[322203598,1712870011447,-500.0,0.00032054,2]
[322203599,1712870011456,-532.8,0.00032054,2]
[322203600,1712870011465,-717.66,0.00032054,2]
[322203601,1712870011474,-956.54,0.00032054,2]
[322203602,1712870011485,-500.0,0.00032054,2]
[322203603,1712870011495,-527.16,0.00032054,2]
[322203604,1712870011504,-500.0,0.00032054,2]
[322203605,1712870011513,-583.53,0.00032054,2]
[322203606,1712870011522,-500.0,0.00032054,2]
[322203607,1712870011531,-500.0,0.00032054,2]
[322203608,1712870011540,-794.27,0.00032054,2]
[322203609,1712870011549,-775.81,0.00032054,2]
[322203610,1712870011558,-1268.53,0.00032054,2]
[322203611,1712870011567,-579.81,0.00032054,2]
[322203612,1712870011576,-683.65,0.00032054,2]
[322203613,1712870011585,-500.0,0.00032054,2]
[322203614,1712870011595,-1283.53,0.00032054,2]
[322203615,1712870011604,-500.0,0.00032054,2]
[322203616,1712870011613,-1242.22,0.00032054,2]
[322203617,1712870011622,-686.6,0.00032054,2]
[322203618,1712870011631,-610.16,0.00032054,2]
[322203619,1712870011641,-964.51,0.00032054,2]
[322203620,1712870011650,-552.23,0.00032054,2]
[322203621,1712870011659,-500.0,0.00032054,2]
[322203622,1712870011668,-500.0,0.00032054,2]
[322203623,1712870011677,-993.58,0.00032054,2]
[322203624,1712870011687,-675.23,0.00032054,2]
[322203625,1712870011697,-1308.49,0.00032054,2]
[322203626,1712870011706,-703.03,0.00032054,2]
[322203627,1712870011715,-564.56,0.00032054,2]
[322203628,1712870011724,-561.9,0.00032054,2]
[322203629,1712870011734,-560.79,0.00032054,2]
[322203630,1712870011853,-1067.51,0.00032054,2]
[322203631,1712870011866,-598.24,0.00032054,2]
[322203632,1712870011875,-691.29,0.00032054,2]
[322203633,1712870011884,-500.0,0.00032054,2]
[322203634,1712870011893,-500.0,0.00032054,2]
[322203635,1712870011902,-704.14,0.00032054,2]
[322203636,1712870011911,-645.96,0.00032054,2]
[322203637,1712870011920,-1172.44,0.00032054,2]
[322203638,1712870011928,-1403.78,0.00032054,2]
[322203639,1712870011937,-820.3,0.00032054,2]
[322203640,1712870011947,-868.58,0.00032054,2]
[322203641,1712870011956,-1352.31,0.00032054,2]
[322203642,1712870011965,-1263.1,0.00032054,2]
[322203643,1712870011975,-1192.54,0.00032054,2]
[322203644,1712870011984,-1391.45,0.00032054,2]
[322203645,1712870011993,-811.44,0.00032054,2]
[322203646,1712870012003,-609.69,0.00032054,2]
[322203647,1712870012014,-676.3,0.00032054,2]
[322203648,1712870012023,-540.39,0.00032054,2]
[322203649,1712870012033,-1771.03,0.00032054,2]
[322203650,1712870012043,-541.31,0.00032054,2]
[322203651,1712870012052,-1468.06,0.00032054,2]
[322203652,1712870012061,-862.27,0.00032054,2]
[322203653,1712870012070,-1183.63,0.00032054,2]
[322203654,1712870012079,-500.0,0.00032054,2]
[322203655,1712870012088,-839.54,0.00032054,2]